[Event "44th Chess Olympiad Open 2022"]
[Site "Chennai"]
[Date "2022.07.30"]
[Round "2.71"]
[White "Gabriel, Davidson"]
[Black "Yussof, Pg Abd Rahman"]
[Result "1-0"]
[ECO "D45"]
[WhiteElo "1915"]
[BlackElo "1804"]
[Annotator "TA"]
[PlyCount "129"]
[EventDate "2022.07.29"]
[EventType "team-tourn"]
[EventCountry "IND"]
[SourceTitle "playchess.com"]
[Source "ChessBase"]
[SourceQuality "1"]
[WhiteTeam "Haiti"]
[BlackTeam "Brunei"]
[WhiteTeamCountry "HAI"]
[BlackTeamCountry "BRN"]
[TimeControl "40/5400+30:1800+30"]

{[%evp 12,129,20,17,37,26,102,97,103,108,118,91,139,136,123,102,111,104,103,85,103,105,104,96,117,83,111,61,138,113,112,86,157,160,254,212,191,185,206,187,198,176,192,127,142,144,117,60,92,86,145,163,176,162,180,130,122,0,0,0,110,-5,-2,-2,-6,0,23,14,24,-102,0,0,22,27,15,18,13,0,0,0,0,0,0,0,0,0,141,141,142,135,169,171,163,162,208,196,228,106,222,150,179,181,257,254,312,313,243,0,146,150,161,156,150,161,148,160,6279,5923,4674,4586]} 1. d4 {[%emt 0:00:07]} d5 {[%emt 0:01:00]} 2. c4 {[%emt 0:00:15]} c6 {[%emt 0:00:39]} 3. Nc3 {[%emt 0:02:10]} Nf6 {[%emt 0:01:13]} 4. Nf3 {[%emt 0:02:02]} e6 {[%emt 0:02:08]} 5. e3 {[%emt 0:00:48][%cal Be2e3,Be3e4][%mdl 32]} Nbd7 {[%emt 0:01:42]} 6. Qc2 {[%emt 0:01:31]} Bb4 {[%emt 0:02:43]} 7. Bd3 {[%emt 0:00:46]} dxc4 {[%emt 0:02:52] D45: Semi-Slav: 5 e3.} 8. Bxc4 {[%emt 0:00:15]} Nd5 {[%emt 0:02:01]} (8... c5 $11) 9. O-O {[%emt 0:00:58]} O-O {[%emt 0:01:55] White is better.} 10. e4 {[%emt 0:03:27]} N5b6 {[%emt 0:02:00]} 11. Bd3 {[%emt 0:00:13] [#]} f6 $146 {[%emt 0:01:54]} (11... e5 $142) ({Predecessor:} 11... h6 12. a3 Bxc3 13. bxc3 c5 14. a4 a5 15. Bf4 c4 16. Be2 Nf6 17. Nd2 Bd7 18. Bxc4 {0-1 (58) Mustuoglu,U (1575)-Ozkan,Y (1426) Konya 2019}) 12. Qb3 {[%emt 0:02:32]} Qe7 {[%emt 0:01:18]} 13. a3 {[%emt 0:01:33]} Bd6 {[%emt 0:02:47]} 14. a4 {[%emt 0:01:26]} a5 {[%emt 0:00:58]} 15. Re1 {[%emt 0:00:00]} Bc7 {[%emt 0:03:17]} 16. Be3 {[%emt 0:00:41]} Kh8 {[%emt 0:01:55]} 17. Rac1 {[%emt 0:02:38]} Qb4 {[%emt 0:09:43]} 18. Qa2 {[%emt 0:01:24]} (18. Qxe6 $2 Ne5 $1 {[%mdl 512]} 19. Qa2 Nxd3 $19) 18... Qe7 {[%emt 0:05:10]} 19. Bb1 {[%emt 0:02:30]} ({Better is} 19. d5 $16) 19... Qf7 {[%emt 0:06:57]} (19... Nb8 $14) 20. Red1 {[%emt 0:01:42]} Qh5 {[%emt 0:02:17]} 21. h3 {[%emt 0:01:12]} (21. Qxe6 $2 Ne5 $1 {[%mdl 512]} 22. Qe7 Nxf3+ 23. Kf1 Nxh2+ 24. Ke1 Bd7 $19) 21... Bb8 {[%emt 0:06:17]} (21... f5 $142) 22. Qb3 $16 {[%emt 0:01:12]} (22. Qxe6 $2 Ne5 $1 23. Qb3 (23. Qe7 $2 Nxf3+ 24. Kf1 Nh2+ 25. Kg1 Nf3+ 26. Kf1 Re8 $19) 23... Nxf3+ 24. Kf1 (24. gxf3 $2 Bxh3 25. e5 Bc7 $19) 24... Nh2+ 25. Ke1 Nd7 $19) 22... Ba7 {[%emt 0:01:20]} (22... Re8 $16 23. Ne2 (23. d5 exd5 24. exd5 Nxd5 $16) 23... Ra6) 23. Ne2 {[%emt 0:01:57] aiming for Nf4.} (23. Qxe6 Ne5 $1 24. Qd6 Nxf3+ 25. gxf3 Bxh3 $17) 23... Re8 {[%emt 0:09:39]} 24. Nf4 {[%emt 0:02:11][%csl LRe6,LRh5]} Qf7 {[%emt 0:00:09]} 25. Ba2 {[%emt 0:01:09][%cal Rf4e6]} Nf8 {[%emt 0:03:57]} 26. d5 {[%emt 0:00:47]} e5 {[%emt 0:02:21]} 27. Bxb6 {[%emt 0:01:03]} (27. Ne2 $18 Nbd7 28. Bxa7 (28. dxc6 Qxb3 29. Bxb3 bxc6 $16) 28... Rxa7 29. Ng3 (29. dxc6 Qxb3 30. Bxb3 bxc6 $16)) 27... Bxb6 {[%emt 0:01:43]} 28. Qxb6 {[%emt 0:10:03]} exf4 {[%emt 0:00:33]} 29. Nd2 {[%emt 0:03:40]} (29. Bc4 $16 Qg6 30. Qb3 (30. dxc6 bxc6 31. Kh2 Bd7 $16)) 29... Qg6 {[%emt 0:01:19]} 30. Rc3 {[%emt 0:00:23] Threatens to win with Nc4.} (30. dxc6 $2 Bxh3 31. g3 fxg3 $19) 30... cxd5 {[%emt 0:01:29]} (30... Nd7 $142 31. Qc7 Ne5) 31. Bxd5 {[%emt 0:01:14]} Nd7 {[%emt 0:00:02]} 32. Qc7 {[%emt 0:03:51]} Ne5 {[%emt 0:00:36][%cal Of4f3]} 33. Kh2 {[%emt 0:00:49]} (33. Bxb7 Bxb7 34. Qxb7 Rab8 $14) ({White should play} 33. Nc4 $1 $18 {[%cal Rc4e5] And now Nxe5 would win.} f3 34. g3) 33... Qh5 {[%emt 0:01:00]} 34. f3 {[%emt 0:08:19]} (34. Rdc1 $16) 34... Qh4 $11 {[%emt 0:05:40][%cal Oc8h3]} 35. Nf1 {[%emt 0:01:03] Active counter play!} g5 {[%emt 0:02:28]} (35... h6 $11) 36. Qb6 {[%emt 0:00:36]} (36. Bxb7 Bxb7 37. Qxb7 g4 38. fxg4 Rab8 $17) ({White has to play} 36. Kg1 $1 $16) 36... g4 $1 {[%emt 0:00:51]} 37. fxg4 {[%emt 0:01:12]} Bxg4 {[%emt 0:00:53]} 38. Rd2 {[%emt 0:00:48]} f3 {[%emt 0:02:27]} 39. Qf2 {[%emt 0:00:27] Dancing on a razor blade.} Qh6 {[%emt 0:02:41][%cal Og4h3] ...Bxh3! is the strong threat.} (39... fxg2 $2 40. Qxh4 $1 (40. Kxg2 Qxf2+ 41. Rxf2 Bd7 $16) 40... gxf1=Q 41. Rf2 $18) 40. Qg3 {[%emt 0:02:18] [#]} (40. Qe3 $11 fxg2 41. Rxg2 Nf3+ 42. Kh1 Qxh3+ 43. Nh2) 40... fxg2 {[%emt 0:03:34]} (40... Be6 $1 $17 {White must now prevent ...Rg8.} 41. Rxf3 (41. gxf3 Rg8 $17) 41... Nxf3+ 42. Qxf3 Rad8) 41. Rxg2 {[%emt 0:30:18]} Be6 {[%emt 0:30:15]} 42. Bxe6 {[%emt 0:01:31]} (42. Bxb7 Rab8 43. Bd5 Bxd5 44. exd5 Rg8 $17) 42... Rxe6 {[%emt 0:00:02]} 43. Rc7 $36 {[%emt 0:00:20][%mdl 2048] White is more active.} Ng6 {[%emt 0:01:43]} 44. Rxb7 {[%emt 0:01:24]} Rxe4 {[%emt 0:01:20]} 45. Rb8+ {[%emt 0:00:21]} Re8 {[%emt 0:00:03]} 46. Rxa8 {[%emt 0:01:25]} Rxa8 {[%emt 0:00:02]} 47. Rf2 {[%emt 0:00:28]} Rf8 {[%emt 0:00:42]} 48. Ne3 {[%emt 0:00:49]} Qh4 {[%emt 0:00:51]} (48... Ne5 $11) 49. Qxh4 $16 {[%emt 0:00:56]} Nxh4 {[%emt 0:00:02][%mdl 4096] Endgame KRN-KRN} 50. Nc4 {[%emt 0:03:01]} Kg7 {[%emt 0:01:39]} 51. Nxa5 {[%emt 0:00:04]} ({Much less strong is} 51. Kg3 Ng6 $16) 51... Ra8 {[%emt 0:00:38]} 52. b4 {[%emt 0:00:07]} Ng6 {[%emt 0:00:11]} (52... Kf7 {was necessary.} 53. Kg3 Ng6) 53. Ra2 $18 {[%emt 0:00:18]} Ne5 {[%emt 0:00:19]} 54. Kg3 {[%emt 0:00:35]} (54. Nb3 $18 {has better winning chances.}) 54... h5 {[%emt 0:00:48]} (54... Kf7 $16 {might work better.}) 55. Ra3 {[%emt 0:00:59]} Kg6 {[%emt 0:00:44]} 56. Kf4 {[%emt 0:00:13]} Rd8 {[%emt 0:00:53]} (56... h4 $142 57. Ke4 Re8) 57. Ke4 {[%emt 0:00:55]} Kf7 {[%emt 0:00:52]} 58. b5 {[%emt 0:02:54]} Ke6 {[%emt 0:00:27]} 59. Rc3 $2 {[%emt 0:00:46]} (59. b6 $18) 59... f5+ {[%emt 0:00:25]} (59... Ra8 $11 {keeps the balance.} 60. Nc4 Rxa4) 60. Ke3 $16 {[%emt 0:00:10]} f4+ {[%emt 0:00:39]} 61. Kxf4 {[%emt 0:02:36]} Rd4+ {[%emt 0:00:10] [#]} 62. Kg5 $1 {[%emt 0:00:04]} Rxa4 {[%emt 0:00:36]} 63. Nc6 {[%emt 0:01:09]} Ra8 $2 {[%emt 0:02:14]} (63... Nd7 $16 64. Re3+ (64. Kxh5 Nf6+ 65. Kh6 Nd5 $18) 64... Kd6 65. Rd3+ (65. Kxh5 Kc5 $16) 65... Kc7 66. Kxh5 Nc5) 64. Re3 $18 {[%emt 0:00:14]} Rh8 {[%emt 0:00:42]} 65. Rxe5+ {[%emt 0:00:10] Weighted Error Value: White=0.25 (precise) /Black=0.36} 1-0

[Event "44th Chess Olympiad Open 2022"]
[Site "Chennai"]
[Date "2022.07.30"]
[Round "2.71"]
[White "Sharikhan, Shawal"]
[Black "Germinal, Kemly"]
[Result "0-1"]
[ECO "A28"]
[WhiteElo "1789"]
[BlackElo "1997"]
[Annotator "TA"]
[PlyCount "96"]
[EventDate "2022.07.29"]
[EventType "team-tourn"]
[EventCountry "IND"]
[SourceTitle "playchess.com"]
[Source "ChessBase"]
[SourceQuality "1"]
[WhiteTeam "Brunei"]
[BlackTeam "Haiti"]
[WhiteTeamCountry "BRN"]
[BlackTeamCountry "HAI"]
[TimeControl "40/5400+30:1800+30"]

{[%evp 9,96,-21,-19,-24,0,0,15,15,15,11,19,14,13,0,1,0,17,8,11,0,16,0,0,-51,-54,-54,-41,-68,-50,-87,-89,-90,-85,-138,-86,-94,-95,-88,-48,-143,-113,-150,-121,-135,-87,-88,-55,-99,-95,-92,-106,-80,-100,-168,-184,-169,-11,-25,0,-168,-166,-137,-148,-534,-518,-758,-696,-658,-230,-216,-207,-814,-130,-438,-152,-1106,-202,-2772,-2726,-29991,-29992,-29992,-29993,-29993,-29994,-29994,-29995,-29995,-29996]} 1. Nf3 {[%emt 0:00:07]} Nc6 {[%emt 0:00:16]} 2. c4 {[%emt 0:00:30]} e5 {[%emt 0:00:36]} 3. Nc3 {[%emt 0:00:27]} Nf6 {[%emt 0:00:18]} 4. e4 {[%emt 0:01:40]} Bb4 {[%emt 0:05:23]} 5. Qc2 {[%emt 0:05:45]} d6 {[%emt 0:01:24]} 6. a3 {[%emt 0:03:04] A28: English Opening: Four Knights Variation.} Bxc3 {[%emt 0:03:42]} 7. bxc3 {[%emt 0:00:19]} Bg4 {[%emt 0:02:01]} 8. Be2 {[%emt 0:01:16] The position is equal.} O-O {[%emt 0:04:37] [#]} 9. d3 $146 {[%emt 0:01:20]} ({Predecessor:} 9. h3 Bh5 10. g4 Bg6 11. d3 Nd7 12. Be3 Re8 13. h4 f6 14. h5 Bf7 15. g5 {0-1 (39) Adeba Rodriguez,J-Moreno Luelmo,E Asturias 1997}) 9... Ne8 {[%emt 0:03:01]} 10. h3 {[%emt 0:03:45]} Bd7 {[%emt 0:01:03]} 11. Bg5 {[%emt 0:05:17]} f6 {[%emt 0:00:40]} 12. Bh4 {[%emt 0:00:45]} Kh8 {[%emt 0:04:04]} (12... g5 $5 13. Bg3 f5 $11) 13. g4 {[%emt 0:04:10]} Ne7 {[%emt 0:02:25]} 14. Bg3 {[%emt 0:05:29]} c6 {[%emt 0:00:40]} 15. Nh4 {[%emt 0:08:14]} d5 {[%emt 0:00:54]} 16. cxd5 {[%emt 0:03:41]} (16. O-O $11) 16... cxd5 $15 {[%emt 0:00:22]} 17. O-O {[%emt 0:13:34]} Rc8 {[%emt 0:04:26]} 18. Qd2 {[%emt 0:03:04]} Qa5 {[%emt 0:04:41]} 19. Qb2 {[%emt 0:04:20]} Nd6 {[%emt 0:01:40][%cal Be8d6,Bd6f7,Bf7g5][%mdl 32]} ({Much weaker is} 19... Qxc3 $6 20. Qxb7 Rc7 21. Qb4 Qxb4 22. axb4 $11) 20. Qb4 {[%emt 0:09:10]} Qc7 {[%emt 0:07:23]} 21. Rac1 {[%emt 0:05:32]} (21. Rfc1 $142) 21... a5 {[%emt 0:01:14]} (21... dxe4 $142 {And now ...Nd5 would win.} 22. dxe4 a5) 22. Qb2 $17 {[%emt 0:02:36]} dxe4 {[%emt 0:00:39]} 23. d4 {[%emt 0:00:50]} Nf7 {[%emt 0:02:43]} 24. Rfd1 {[%emt 0:04:57]} (24. c4 $15) 24... Ng5 {[%emt 0:04:10]} 25. Kh2 {[%emt 0:03:09]} Ba4 $36 {[%emt 0:01:07][%mdl 2048] Black is on the roll.} 26. Re1 {[%emt 0:01:34]} e3 {[%emt 0:01:24]} ({Better is} 26... Nd5 $1 27. c4 Nf4) 27. f3 {[%emt 0:00:22]} Nd5 {[%emt 0:05:14][%cal Be7d5,Bd5f4,Bf4g2][%mdl 32]} 28. Ng2 {[%emt 0:02:18]} Nf4 $1 {[%emt 0:02:42] Pair of Knights!} 29. h4 {[%emt 0:01:17]} Nxg2 {[%emt 0:04:58] The board is on fire. 0x0.0002da50ecefdp-1022s more active pieces.} ({Reject} 29... Nxe2 $6 30. Qxe2 Nf7 31. Nxe3 $11) 30. Kxg2 {[%emt 0:00:21]} Ne6 {[%emt 0:00:13]} 31. Bf1 {[%emt 0:01:47]} (31. d5 $17 {was worth a try.} Nf4+ 32. Bxf4 exf4 33. c4) 31... Nf4+ $19 {[%emt 0:01:07]} 32. Kh2 {[%emt 0:00:12]} Bc6 $2 {[%emt 0:02:13]} (32... Qc6 $19 33. Bxf4 exf4) 33. Rxe3 $11 {[%emt 0:01:15]} Rce8 {[%emt 0:02:55]} 34. Bxf4 $2 {[%emt 0:01:20]} (34. Qd2 $11 {and White stays safe.}) 34... exf4 $19 {[%emt 0:00:13]} 35. Rxe8 {[%emt 0:00:11]} Rxe8 {[%emt 0:00:07]} 36. Kg2 {[%emt 0:00:47][%mdl 8192]} (36. Bg2 $17) 36... Re3 {[%emt 0:01:15]} 37. Be2 {[%emt 0:01:41]} Qe7 {[%emt 0:01:31]} 38. Kf2 {[%emt 0:00:32]} f5 $2 {[%emt 0:00:44]} (38... h5 {Threatens to win with ...hxg4.} 39. d5 Bxd5) 39. g5 {[%emt 0:00:09]} h6 {[%emt 0:01:42]} 40. Rg1 $2 {[%emt 0:00:30] [#]} (40. a4) 40... h5 $2 {[%emt 0:07:14]} (40... Rxf3+ $3 $19 {[%mdl 512] is more deadly.} 41. Bxf3 Qe3+ 42. Kg2 Qxf3+ 43. Kh2 hxg5) 41. Rd1 $2 {[%emt 0:30:20][%mdl 8192] [#]} (41. Qd2 $17 {is a better chance.}) 41... Bd5 $2 {[%emt 0:44:28]} (41... Rxf3+ $1 $19 {[%mdl 512] has better winning chances.} 42. Bxf3 Qe3+ 43. Kf1 Qxf3+ 44. Ke1 Ba4) 42. Rd2 $2 {[%emt 0:00:28] [#] Now White is beyond hope.} (42. c4 $17 Rxf3+ 43. Bxf3 Qe3+ 44. Kf1 Qxf3+ 45. Ke1 Bxc4 46. Qf2 Qe4+ 47. Kd2) 42... Qe8 $2 {[%emt 0:01:13]} (42... Rxf3+ $3 {[%mdl 512]} 43. Ke1 Rh3) 43. c4 $2 {[%emt 0:00:58] [#]} (43. Rd1) 43... Rxf3+ $3 {[%emt 0:00:14][%mdl 512]} 44. Bxf3 {[%emt 0:00:41]} (44. Ke1 Qe3) 44... Qe3+ {[%emt 0:00:06][%mdl 64] Deflection, Double Attack. Black mates.} 45. Kf1 {[%emt 0:00:44]} Qxf3+ {[%emt 0:00:12]} 46. Ke1 {[%emt 0:01:25]} Qh1+ {[%emt 0:00:25]} 47. Kf2 {[%emt 0:00:59]} Qg2+ {[%emt 0:00:14]} 48. Ke1 {[%emt 0:00:35]} Qg1+ {[%emt 0:00:06] Weighted Error Value: White=1.00/Black=0.62} 0-1